Workbook

Sheet Lønnsomhetsanalyse
B2: Lønnsomhetsanalyse for kunde
B3: 20. JANUAR 2013 | D3: FIRMANAVN
B6: Kundeaktivitet | C6: Kunde 1 | D6: Kunde 2 | E6: Kunde 3 | F6: Sum
B7: Antall aktive kunder – begynnelsen av perioden | C7: 5 | D7: 8 | E7: 8 | F7: =SUM(C7:E7) -> 21
B8: Antall kunder lagt til | C8: 2 | D8: 4 | E8: 4 | F8: =SUM(C8:E8) -> 10
B9: Antall kunder tapt/avsluttet | C9: (1) | D9: (2) | E9: (2) | F9: (5)
B10: Antall aktive kunder – slutten av perioden | C10: =SUBTOTAL(109,Lønnsomhetsanalyse!$C$7:$C$9) -> 6 | D10: =SUBTOTAL(109,Lønnsomhetsanalyse!$D$7:$D$9) -> 10 | E10: =SUBTOTAL(109,Lønnsomhetsanalyse!$E$7:$E$9) -> 10 | F10: 26
B12: Lønnsomhetsanalyse
B13: Inntekt per segment | C13: kr 1,500,000 | D13: kr 1,800,000 | E13: kr 2,500,000 | F13: =SUM(Lønnsomhetsanalyse!$C13:$E13) -> kr 5,800,000
B14: Vekting | C14: =C13/$F$13 -> 25.9% | D14: =D13/$F$13 -> 31.0% | E14: 43.1% | F14: =SUM(C14:E14) -> 100.0%
B16: Salgskostnader
B17: Kostnader for pågående tjenester og støtte | C17: kr 1,000,000 | D17: kr 1,400,000 | E17: kr 1,400,000 | F17: =SUM(Lønnsomhetsanalyse!$C17:$E17) -> kr 3,800,000
B18: Andre direkte kundekostnader | C18: 200,000 | D18: 100,000 | E18: 100,000 | F18: =SUM(Lønnsomhetsanalyse!$C18:$E18) -> 400,000
B19: Totale salgskostnader | C19: =SUBTOTAL(109,Lønnsomhetsanalyse!$C$17:$C$18) -> 1,200,000 | D19: =SUBTOTAL(109,Lønnsomhetsanalyse!$D$17:$D$18) -> 1,500,000 | E19: =SUBTOTAL(109,Lønnsomhetsanalyse!$E$17:$E$18) -> 1,500,000 | F19: =SUBTOTAL(109,Lønnsomhetsanalyse!$F$17:$F$18) -> 4,200,000
B20: Bruttomargin | C20: =C13-Lønnsomhetsanalyse!$C$19 -> kr 300,000 | D20: =D13-Lønnsomhetsanalyse!$D$19 -> kr 300,000 | E20: =E13-Lønnsomhetsanalyse!$E$19 -> kr 1,000,000 | F20: =F13-Lønnsomhetsanalyse!$F$19 -> kr 1,600,000
B21: Vekting | C21: =MAX(0,MIN(1,C20/$F$20)) -> 18.8% | D21: =MAX(0,MIN(1,D20/$F$20)) -> 18.8% | E21: 62.5% | F21: =SUM(Lønnsomhetsanalyse!$C21:$E21) -> 100.0%
B23: Andre kostnader
B24: Kundeanskaffelse | C24: kr 105,000 | D24: kr 120,000 | E24: kr 235,000 | F24: =SUM(Lønnsomhetsanalyse!$C24:$E24) -> kr 460,000
B25: Kundemarkedsføring | C25: 150,000 | D25: 125,000 | E25: 275,000 | F25: =SUM(Lønnsomhetsanalyse!$C25:$E25) -> kr 550,000
B26: Kundeavslutning | C26: 80,000 | D26: 190,000 | E26: 140,000 | F26: =SUM(Lønnsomhetsanalyse!$C26:$E26) -> kr 410,000
B27: Totalt - andre kundekostnader | C27: =SUBTOTAL(109,Lønnsomhetsanalyse!$C$24:$C$26) -> 335,000 | D27: =SUBTOTAL(109,Lønnsomhetsanalyse!$D$24:$D$26) -> 435,000 | E27: =SUBTOTAL(109,Lønnsomhetsanalyse!$E$24:$E$26) -> 650,000 | F27: =SUBTOTAL(109,Lønnsomhetsanalyse!$F$24:$F$26) -> 1,420,000
B29: Kundefortjeneste per segment | C29: =C20-C27 -> kr -35,000 | D29: =D20-D27 -> kr -135,000 | E29: =E20-E27 -> kr 350,000 | F29: =F20-Lønnsomhetsanalyse!$F$27 -> kr 180,000
B30: Vekting | C30: =MAX(0,MIN(1,C29/$F$29)) -> 0.0% | D30: =MAX(0,MIN(1,D29/$F$29)) -> 0.0% | E30: 100.0% | F30: =SUM(Lønnsomhetsanalyse!$C30:$E30) -> 100.0%
B32: Sammendragsmål
B33: Gjennomsnittskostnad per anskaffet kunde | C33: =C24/C8 -> kr 52,500 | D33: =D24/D8 -> kr 30,000 | E33: =E24/E8 -> kr 58,750
B34: Gjennomsnittskostnad per avsluttet kunde | C34: =-C26/C9 -> kr 80,000 | D34: =-D26/D9 -> kr 95,000 | E34: =-E26/E9 -> kr 70,000
B35: Gjennomsnittskostnad for markedsføring per aktiv kunde | C35: =C25/Lønnsomhetsanalyse!$C$10 -> kr 25,000 | D35: =D25/Lønnsomhetsanalyse!$D$10 -> kr 12,500 | E35: =E25/Lønnsomhetsanalyse!$E$10 -> kr 27,500
B36: Gjennomsnittsgevinst eller -tap per kunde | C36: =C29/Lønnsomhetsanalyse!$C$10 -> kr -5,833.33 | D36: =D29/Lønnsomhetsanalyse!$D$10 -> kr -13,500.00 | E36: =E29/Lønnsomhetsanalyse!$E$10 -> kr 35,000.00

Sheet Diagram for sammendragsmål
B2: Sammendragsmål per kunde
B3: =ReportDate -> 20. JANUAR 2013 | R3: =CompanyName -> FIRMANAVN
